fUSD/lending_fUSD_20260129
["ID","MTS","AMOUNT","RATE_DAILY","PERIOD"]
[403921429,1769680247040,-251.11897888,0.00024239,2]
[403921430,1769680247050,-260.4103811,0.00024294,2]
[403921431,1769680247059,-270.0455652,0.00024349,2]
[403921432,1769680247068,-280.03725112,0.00024404,2]
[403921433,1769680247077,-290.39862941,0.00024459,2]
[403921434,1769680247087,-197.42,0.000245,2]
[403921435,1769680247096,-885.86649465,0.00024512,2]
[403921436,1769680247105,-301.1433787,0.00024514,2]
[403921437,1769680247115,-3980.0,0.0002456,2]
[403921438,1769680247124,-598.07465299,0.0002465,2]
[403921439,1769680247134,-1000.0,0.00024658,2]
[403921440,1769680247143,-150.0,0.00024658,2]
[403921441,1769680247153,-527.70941026,0.00024706,2]
[403921442,1769680247162,-412.00115713,0.0002478,2]
[403921443,1769680247172,-354.8021314,0.00024788,2]
[403921444,1769680247182,-231.36816958,0.0002479,2]
[403921445,1769680247191,-150.0,0.00024799,2]
[403921446,1769680247200,-227.43800951,0.00024799,2]
[403921447,1769680247210,-500.0,0.00024799,2]
[403921448,1769680247219,-500.0,0.00024799,2]
[403921449,1769680247229,-1500.0,0.000248,9]
[403921450,1769680247238,-86971.80589408,0.000248,2]
[403921451,1769680247259,-602.0,0.000248,2]
[403921452,1769680247270,-1269.63178664,0.000248,2]
[403921453,1769680247280,-3148.75351231,0.000248,2]
[403921454,1769680247317,-1204.0,0.00020534,2]
[403921455,1769680247327,-1579.37,0.000248,2]
[403921456,1769680247346,-1876.8110829,0.000248,2]
[403921457,1769680247357,-1739.1709747,0.000248,2]
[403921464,1769680784651,-500.0,0.00015973,2]
[403921465,1769680784671,-250.0,0.00016152,2]
[403921466,1769680784705,-500.0,0.00016331,2]
[403921467,1769680784725,-151.0,0.00016536,2]
[403921468,1769680784745,-151.0,0.00016536,2]
[403921469,1769680784766,-151.0,0.00016542,2]
[403921470,1769680784786,-151.0,0.00016542,2]
[403921471,1769680784806,-151.0,0.00016699,2]
[403921472,1769680784828,-151.0,0.00016699,2]
[403921473,1769680784847,-165.22,0.00016712,2]
[403921474,1769680784876,-195.0,0.0001757,2]
[403921475,1769680784897,-306.04111667,0.0001757,2]
[403921476,1769680784917,-250.0,0.0001757,2]
[403921477,1769680784936,-5216.2949533,0.000177,2]
[403921478,1769680784957,-550.0,0.00017771,2]
[403921479,1769680784977,-296.82988468,0.00017772,2]
[403921480,1769680784997,-215.07706815,0.00017772,2]
[403921481,1769680785205,-500.0,0.00017772,2]
[403921482,1769680785228,-289.79070179,0.00017772,2]
[403921483,1769680785249,-500.0,0.00017772,2]
[403921484,1769680785269,-405.00981624,0.00017772,2]
[403921485,1769680785291,-500.0,0.00017772,2]
[403921486,1769680785312,-500.0,0.00017772,2]
[403921487,1769680785333,-500.0,0.00017772,2]
[403921488,1769680785358,-500.0,0.00017772,2]
[403921489,1769680785381,-500.0,0.00017772,2]
[403921490,1769680785404,-500.0,0.00017772,2]
[403921491,1769680785426,-500.0,0.00017772,2]
[403921492,1769680785449,-240.28114287,0.00017772,2]
[403921493,1769680785472,-500.0,0.00017772,2]
[403921494,1769680785499,-500.0,0.00017772,2]
[403921495,1769680785522,-500.0,0.00017772,2]
[403921496,1769680785547,-500.0,0.00017772,2]
[403921497,1769680785570,-500.0,0.00017772,2]
[403921498,1769680785594,-500.0,0.00017772,2]
[403921499,1769680785619,-500.0,0.00017772,2]
[403921500,1769680785642,-500.0,0.00017772,2]
[403921501,1769680785670,-612.52664213,0.00017772,2]
[403921502,1769680785695,-500.0,0.00017772,2]
[403921503,1769680785721,-500.0,0.00017772,2]
[403921504,1769680785746,-500.0,0.00017772,2]
[403921505,1769680785770,-500.0,0.00017772,2]
[403921506,1769680785794,-500.0,0.00017772,2]
[403921507,1769680785817,-500.0,0.00017772,2]
[403921508,1769680785846,-500.0,0.00017772,2]
[403921509,1769680785871,-499.99999999,0.00017772,2]
[403921510,1769680785892,-150.0,0.00017772,2]
[403921511,1769680785917,-976451.92867418,0.00017773,2]
[403921512,1769680824937,-151.0,0.00016748,2]
[403921513,1769680824960,-284.51,0.00016773,2]
[403921514,1769680824982,-151.0,0.00016773,2]
[403921515,1769680825003,-329.60092572,0.000177,2]
[403921516,1769680825024,-300.0,0.00017772,2]
[403921517,1769680825049,-40565.62422582,0.00017773,2]
[403921518,1769680825069,-629.54106026,0.00017899,2]
[403921519,1769680825089,-500.0,0.00017899,2]
[403921520,1769680825109,-606.98231824,0.00017899,2]
[403921521,1769680825129,-500.0,0.000179,6]
[403921522,1769680825148,-200.0,0.000179,6]
[403921523,1769680825168,-550.0,0.00017972,2]
[403921524,1769680825187,-255.48629937,0.00017973,2]
[403921525,1769680825206,-500.0,0.00017973,2]
[403921526,1769680825225,-558.2762163,0.00017973,2]
[403921527,1769680825246,-500.0,0.00017973,2]
[403921528,1769680825266,-502.44429427,0.00017973,2]
[403921529,1769680825287,-500.0,0.00017973,2]
[403921530,1769680825307,-502.00566275,0.00017973,2]
[403921531,1769680825330,-333.1,0.00017991,2]
[403921532,1769680834923,151.0,0.00016964,2]
[403921537,1769680837623,529.0,0.00018,2]
[403921538,1769680851264,299.41,0.00016898,2]
[403921540,1769680873049,500.0,0.00017973,2]
[403921541,1769680883618,500.0,0.00017973,2]
[403921542,1769680887082,160.9344286,0.00018,2]
[403921545,1769680936217,500.0,0.00017973,2]
[403921546,1769680993159,500.0,0.00017973,2]
[403921547,1769681002821,500.0,0.00017973,2]
[403921548,1769681004581,250.0,0.00017,2]
[403921550,1769681054895,500.0,0.00017973,2]
[403921551,1769681113767,500.0,0.00017973,2]
[403921552,1769681122714,503.61960293,0.00017973,2]
[403921557,1769681160917,208.36670554,0.00018,2]
[403921558,1769681174973,500.0,0.00017973,2]
[403921559,1769681194296,530.0,0.00018,2]
[403921561,1769681236831,502.40100789,0.00017973,2]
[403921567,1769681294258,500.0,0.00017973,2]
[403921582,1769681418253,500.0,0.00017973,2]
[403921600,1769681431667,-291.65158265,0.00018521,2]
[403921615,1769681432498,-481.20598881,0.00018521,2]
[403921616,1769681432508,-159.98208784,0.00018564,2]
[403921617,1769681432519,-300.0,0.00019,2]
[403921618,1769681432529,-300.0,0.00019012,2]
[403921619,1769681432539,-300.0,0.00019013,2]
[403921620,1769681432550,-2000.0,0.000197,2]
[403921621,1769681432561,-1548.0,0.000197,2]
[403921622,1769681432571,-305.4,0.00020289,2]
[403921623,1769681432581,-254.0,0.00020723,2]
[403921624,1769681432591,-420.0,0.00020723,2]
[403921625,1769681432601,-350.0,0.00021,2]
[403921626,1769681432611,-500.0,0.00021165,2]
[403921627,1769681432620,-500.0,0.00021165,2]
[403921628,1769681432630,-500.0,0.00021165,2]
[403921629,1769681432640,-500.0,0.00021165,2]
[403921630,1769681432650,-500.0,0.00021165,2]
[403921631,1769681432659,-500.0,0.00021165,2]
[403921632,1769681432669,-500.0,0.00021165,2]
[403921633,1769681432679,-500.0,0.00021165,2]
[403921634,1769681432688,-500.0,0.00021165,2]
[403921635,1769681432699,-500.0,0.00021165,2]
[403921636,1769681432710,-500.0,0.00021165,2]
[403921637,1769681432720,-500.0,0.00021165,2]
[403921638,1769681432729,-500.0,0.00021165,2]
[403921639,1769681432739,-500.0,0.00021165,2]
[403921640,1769681432752,-402.73123789,0.00021165,2]
[403921641,1769681432762,-457.46833912,0.00021165,2]
[403921642,1769681432772,-151.0,0.00021165,2]
[403921643,1769681432781,-151.0,0.00021165,2]
[403921644,1769681432791,-151.0,0.00021165,2]
[403921645,1769681432802,-151.0,0.00021165,2]
[403921646,1769681432811,-1329.453,0.00021178,2]
[403921647,1769681432821,-615.0,0.00021178,2]
[403921648,1769681432831,-3478.0,0.00021178,2]
[403921649,1769681432840,-1409.0,0.00021178,2]
[403921650,1769681432851,-1270.0,0.00021178,2]
[403921651,1769681432860,-184.0,0.00021178,2]
[403921652,1769681432870,-291.49,0.00021178,2]
[403921653,1769681432881,-916.0,0.00021178,2]
[403921654,1769681432890,-1204.0,0.00021178,2]
[403921655,1769681432902,-2443.0,0.00021178,2]
[403921656,1769681432913,-5932.0,0.00021178,2]
[403921657,1769681432922,-150.0,0.00021179,2]
[403921658,1769681432932,-150.0,0.00021179,2]
[403921659,1769681432942,-150.0,0.00021288,2]
[403921660,1769681432953,-150.0,0.00021288,2]
[403921661,1769681432964,-500.0,0.00021288,2]
[403921662,1769681432974,-500.0,0.00021288,2]
[403921663,1769681432983,-500.0,0.00021288,2]
[403921664,1769681432993,-150.0,0.00021288,2]
[403921665,1769681433003,-500.0,0.00021288,2]
[403921666,1769681433013,-500.0,0.00021288,2]
[403921667,1769681433022,-150.0,0.00021288,2]
[403921668,1769681433032,-150.0,0.00021288,2]
[403921669,1769681433042,-150.0,0.00021288,2]
[403921670,1769681433052,-252.0008295,0.00021288,2]
[403921671,1769681433062,-500.0,0.00021288,2]
[403921672,1769681433072,-500.0,0.00021288,2]
[403921673,1769681433082,-1002.24347503,0.00021342,2]
[403921674,1769681433091,-150.0,0.00021343,2]
[403921675,1769681433104,-150.0,0.00021343,2]
[403921676,1769681433113,-500.0,0.00021343,2]
[403921677,1769681433123,-500.0,0.00021343,2]
[403921678,1769681433132,-500.0,0.00021343,2]
[403921679,1769681433143,-150.0,0.00021343,2]
[403921680,1769681433152,-500.0,0.00021343,2]
[403921681,1769681433161,-150.0,0.00021343,2]
[403921682,1769681433171,-150.0,0.00021343,2]
[403921683,1769681433183,-500.0,0.00021343,2]
[403921684,1769681433193,-500.0,0.00021343,2]
[403921685,1769681433202,-500.0,0.00021343,2]
[403921686,1769681433212,-200.0,0.00021398,2]
[403921687,1769681433221,-500.0,0.00021398,2]
[403921688,1769681433232,-500.0,0.00021398,2]
[403921689,1769681433242,-150.0,0.00021398,2]
[403921690,1769681433252,-500.0,0.00021398,2]
[403921691,1769681433261,-150.0,0.00021398,2]
[403921692,1769681433271,-371.73248203,0.00021398,2]
[403921693,1769681433280,-150.0,0.00021398,2]
[403921694,1769681433290,-150.0,0.00021398,2]
[403921695,1769681433299,-207.52344795,0.00021398,2]
[403921696,1769681433309,-450.0,0.00021398,2]
[403921697,1769681433319,-305.48780142,0.00021398,2]
[403921698,1769681433329,-291.49,0.00021452,2]
[403921699,1769681433338,-509.58549515,0.00021452,2]
[403921700,1769681433348,-200.99227331,0.00021452,2]
[403921701,1769681433358,-500.0,0.00021452,2]
[403921702,1769681433368,-150.0,0.00021452,2]
[403921704,1769681433377,-150.0,0.00021452,2]
[403921705,1769681433386,-250.0,0.00021452,2]
[403921706,1769681433396,-155.08275529,0.00021453,2]
[403921707,1769681433405,-150.0,0.00021453,2]
[403921708,1769681433415,-500.0,0.00021507,2]
[403921709,1769681433424,-150.0,0.00021507,2]
[403921710,1769681433434,-252.80016724,0.00021507,2]
[403921711,1769681433444,-150.0,0.00021508,2]
[403921712,1769681433454,-250.0,0.00021562,2]
[403921713,1769681433463,-500.0,0.00021562,2]
[403921714,1769681433473,-200.97251279,0.00021563,2]
[403921715,1769681433482,-500.0,0.00021617,2]
[403921716,1769681433492,-500.0,0.00021672,2]
[403921717,1769681433502,-291.49,0.00021726,2]
[403921718,1769681433511,-500.0,0.00021726,2]
[403921719,1769681433521,-250.0,0.00021727,2]
[403921720,1769681433530,-300.0,0.00021727,2]
[403921721,1769681433539,-500.0,0.00021781,2]
[403921722,1769681433549,-500.0,0.00021836,2]
[403921723,1769681433558,-500.0,0.00021891,2]
[403921724,1769681433567,-471.54143877,0.00021946,2]
[403921725,1769681433577,-350.0,0.00022274,2]
[403921726,1769681433587,-268.8313425,0.00022274,2]
[403921727,1769681433596,-150.0,0.00022362,2]
[403921728,1769681433605,-44028.41,0.00022472,2]
[403921729,1769681433615,-587.0,0.00022588,2]
[403921730,1769681433624,-305.4,0.00022589,2]
[403921731,1769681433634,-416.7,0.00022736,2]
[403921732,1769681433644,-6282.57,0.0002274,2]
[403921733,1769681433653,-393.79671826,0.00022822,2]
[403921734,1769681433663,-500.0,0.00022824,2]
[403921735,1769681433672,-248.92012699,0.00022824,2]
[403921736,1769681433682,-512.50296024,0.00022824,2]
[403921737,1769681433692,-14349.5,0.00022825,2]
[403921738,1769681433702,-1852.42,0.00022904,2]
[403921739,1769681433711,-200.0,0.00022908,2]
[403921740,1769681433722,-322.6107,0.00022921,2]
[403921741,1769681433730,-854.2589148,0.00022921,2]
[403921742,1769681433740,-209.40437684,0.00022921,2]
[403921743,1769681433750,-1386.70157575,0.0002297,2]
[403921744,1769681433761,-217.15233878,0.00022976,2]
[403921745,1769681433771,-400.0,0.00023,2]
[403921746,1769681433781,-225.18697532,0.00023031,2]
[403921747,1769681433790,-233.51889341,0.00023086,2]
[403921748,1769681433800,-242.15909246,0.00023141,2]
[403921749,1769681433809,-251.11897888,0.00023196,2]
[403921750,1769681433819,-260.4103811,0.00023251,2]
[403921751,1769681433829,-270.0455652,0.00023306,2]
[403921752,1769681433839,-280.03725112,0.00023361,2]
[403921753,1769681433849,-1773.0,0.000234,2]
[403921754,1769681433858,-290.39862941,0.00023416,2]
[403921755,1769681433868,-628.66103224,0.00023469,2]
[403921756,1769681433877,-301.1433787,0.00023471,2]
[403921757,1769681433886,-416.7,0.00023589,2]
[403921758,1769681433896,-386.0,0.00023913,2]
[403921759,1769681433906,-500.0,0.00023918,2]
[403921760,1769681433915,-329.6009257,0.00024,2]
[403921761,1769681433925,-386.0,0.00024134,2]
[403921762,1769681433935,-615.0,0.00024178,2]
[403921763,1769681433944,-3478.0,0.00024178,2]
[403921764,1769681433954,-1409.0,0.00024178,2]
[403921765,1769681433963,-1265.304,0.00024178,2]
[403921766,1769681433972,-184.0,0.00024178,2]
[403921767,1769681433982,-916.0,0.00024178,2]
[403921768,1769681433991,-1204.0,0.00024178,2]
[403921769,1769681434001,-2443.0,0.00024178,2]
[403921770,1769681434011,-2353.893,0.00024178,2]
[403921771,1769681434019,-334.5472959,0.0002429,2]
[403921772,1769681434029,-961.64,0.00024344,2]
[403921773,1769681434039,-416.7,0.00024441,2]
[403921774,1769681434048,-7890.5817131,0.00024583,2]
[403921775,1769681434057,-783.867807,0.00024583,2]
[403921776,1769681434066,-823.0,0.0002462,2]
[403921777,1769681434076,-400.76727744,0.00024636,2]
[403921778,1769681434085,-1531.95,0.00024658,2]
[403921779,1769681434095,-1000.0,0.00024658,2]
[403921780,1769681434108,-150.0,0.00024658,2]
[403921781,1769681434118,-322.44448478,0.00024698,2]
[403921782,1769681434127,-2391.711,0.00024721,7]
[403921783,1769681434143,-199.643,0.00024721,7]
[403921784,1769681434152,-429.28337386,0.00024758,2]
[403921785,1769681434161,-700.0,0.0002477,2]
[403921786,1769681434172,-150.0,0.00024773,2]
[403921787,1769681434182,-386.0,0.00024774,2]
[403921788,1769681434191,-934.81727623,0.00024775,2]
[403921789,1769681434201,-500.0,0.00024799,2]
[403921790,1769681434210,-414.71781927,0.00024799,2]
[403921791,1769681434220,-245.22730188,0.00024799,2]
[403921792,1769681434229,-305.4,0.00024888,2]
[403921793,1769681434239,-1000.0,0.00024899,2]
[403921794,1769681434248,-17380.35373442,0.00025,5]
[403921795,1769681434257,-528.49734902,0.00025097,2]
[403921796,1769681434270,-200.0,0.000251,7]
[403921797,1769681434279,-180.11,0.00025197,2]
[403921798,1769681434289,-180.11,0.00025197,2]
[403921799,1769681434298,-180.11,0.00025197,2]
[403921800,1769681434307,-180.11,0.00025197,2]
[403921801,1769681434317,-183.83,0.00025197,2]
[403921802,1769681434326,-559.33,0.00025198,2]
[403921803,1769681434335,-469.09,0.00025198,2]
[403921804,1769681434345,-469.09,0.00025198,2]
[403921805,1769681434354,-469.09,0.00025198,2]
[403921806,1769681434363,-416.7,0.00025294,2]
[403921807,1769681434374,-156.86,0.00025295,2]
[403921808,1769681434383,-250.9129748,0.00025321,2]
[403921809,1769681434394,-188.0,0.00025386,2]
[403921810,1769681434403,-188.0,0.00025531,2]
[403921811,1769681434413,-188.0,0.0002554,2]
[403921812,1769681434423,-188.0,0.00025548,2]
[403921813,1769681434434,-188.0,0.00025571,2]
[403921814,1769681434443,-346.92554585,0.00025659,2]
[403921815,1769681434453,-188.0,0.00025689,7]
[403921816,1769681434462,-188.0,0.0002581,2]
[403921817,1769681434472,-487.0,0.0002581,2]
[403921818,1769681434482,-487.0,0.0002581,2]
[403921819,1769681434493,-487.0,0.0002581,2]
[403921820,1769681434503,-487.0,0.0002581,2]
[403921821,1769681434513,-487.0,0.0002581,2]
[403921822,1769681434523,-487.0,0.0002581,2]
[403921823,1769681434532,-661.01,0.0002581,2]
[403921824,1769681434543,-188.0,0.00025843,2]
[403921825,1769681434553,-188.0,0.000259,2]
[403921826,1769681434563,-420.0,0.00025913,7]
[403921827,1769681434573,-3346.45321382,0.00025975,2]
[403921828,1769681434583,-334.0,0.00026,2]
[403921829,1769681434593,-207.78091928,0.00026019,2]
[403921830,1769681434602,-500.0,0.00026019,2]
[403921831,1769681434612,-150.5539477,0.00026019,2]
[403921832,1769681434621,-500.0,0.00026019,2]
[403921833,1769681434631,-500.0,0.00026019,2]
[403921834,1769681434641,-500.0,0.00026019,2]
[403921835,1769681434651,-500.0,0.00026019,2]
[403921836,1769681434662,-500.0,0.00026019,2]
[403921837,1769681434672,-500.0,0.00026019,2]
[403921838,1769681434681,-183.50687136,0.00026019,2]
[403921839,1769681434691,-500.0,0.00026019,2]
[403921840,1769681434701,-500.0,0.00026019,2]
[403921841,1769681434710,-497.70743205,0.00026019,2]
[403921842,1769681434720,-937.57,0.0002602,2]
[403921843,1769681434729,-469.09,0.0002602,2]
[403921844,1769681434739,-469.09,0.0002602,2]
[403921845,1769681434748,-416.7,0.00026146,2]
[403921846,1769681434757,-188.0,0.00026177,2]
[403921847,1769681434767,-4135.0,0.00026294,2]
[403921848,1769681434777,-188.0,0.00026294,2]
[403921849,1769681434786,-613.01887186,0.00026346,7]
[403921850,1769681434795,-600.0,0.00026346,7]
[403921851,1769681434804,-800.0,0.00026346,7]
[403921852,1769681434813,-188.0,0.00026372,2]
[403921853,1769681434823,-159.0,0.00026395,3]
[403921854,1769681434832,-159.0,0.00026395,3]
[403921855,1769681434841,-159.0,0.00026395,3]
[403921856,1769681434851,-159.0,0.00026395,3]
[403921857,1769681434860,-159.0,0.00026395,3]
[403921858,1769681434869,-159.0,0.00026395,3]
[403921859,1769681434878,-159.20148998,0.00026395,3]
[403921860,1769681434888,-188.0,0.00026427,2]
[403921861,1769681434897,-485.09,0.00026436,2]
[403921862,1769681434906,-1244.16,0.00026436,2]
[403921863,1769681434916,-485.09,0.00026436,2]
[403921864,1769681434925,-484.01,0.00026436,2]
[403921865,1769681434934,-188.0,0.00026537,2]
[403921866,1769681434944,-4241.1,0.00026556,2]
[403921867,1769681434954,-188.0,0.00026571,2]
[403921868,1769681435268,-188.0,0.00026589,2]
[403921869,1769681435278,-188.0,0.00026762,2]
[403921870,1769681435288,-1020.0,0.00026836,2]
[403921871,1769681435298,-420.0,0.00026933,2]
[403921872,1769681435306,-500.0,0.00027,30]
[403921873,1769681435316,-700.0,0.00027,30]
[403921874,1769681435325,-1000.0,0.00027,30]
[403921875,1769681435335,-167.0,0.00027,2]
[403921876,1769681435344,-359.76179104,0.00027028,2]
[403921877,1769681435353,-528.49734901,0.00027061,2]
[403921878,1769681435362,-200.0,0.000271,7]
[403921879,1769681435372,-1773.5342005,0.000271,2]
[403921880,1769681435381,-3684.31,0.00027123,2]
[403921881,1769681435391,-150.0,0.00027123,2]
[403921882,1769681435401,-188.0,0.00027133,2]
[403921883,1769681435412,-890.84125398,0.0002715,2]
[403921884,1769681435422,-760.58,0.00027176,2]
[403921885,1769681435431,-615.0,0.00027178,2]
[403921886,1769681435442,-3469.0,0.00027178,2]
[403921887,1769681435451,-1400.0,0.00027178,2]
[403921888,1769681435461,-184.0,0.00027178,2]
[403921889,1769681435470,-916.0,0.00027178,2]
[403921890,1769681435479,-1204.0,0.00027178,2]
[403921891,1769681435489,-2443.0,0.00027178,2]
[403921892,1769681435498,-1000.0,0.00027181,2]
[403921893,1769681435508,-305.4,0.00027188,2]
[403921894,1769681435517,-188.0,0.000272,2]
[403921895,1769681435527,-188.0,0.00027208,2]
[403921896,1769681435536,-188.0,0.00027234,2]
[403921897,1769681435545,-386.0,0.0002725,2]
[403921898,1769681435553,-188.0,0.0002729,2]
[403921899,1769681435563,-386.0,0.00027295,2]
[403921900,1769681435573,-386.0,0.00027303,2]
[403921901,1769681435583,-386.0,0.00027317,2]
[403921902,1769681435592,-150.0,0.00027369,2]
[403921903,1769681435603,-961.64,0.00027387,120]
[403921904,1769681435612,-1446.32,0.00027397,2]
[403921905,1769681435622,-518.93,0.00027397,2]
[403921906,1769681435632,-750.0,0.00027397,20]
[403921907,1769681435642,-27145.08,0.00027397,2]
[403921908,1769681435651,-300.0,0.00027397,2]
[403921909,1769681435661,-1531.95,0.00027397,2]
[403921910,1769681435671,-300.0,0.00027397,6]
[403921911,1769681435680,-300.0,0.00027397,6]
[403921912,1769681435690,-10000.64903141,0.000274,2]
[403921913,1769681435700,-600.0,0.00027442,14]
[403921914,1769681435709,-800.0,0.00027442,14]
[403921915,1769681435719,-1000.0,0.00027455,2]
[403921916,1769681435729,-386.0,0.00027458,2]
[403921917,1769681435738,-1000.0,0.00027498,30]
[403921918,1769681435748,-1000.0,0.00027498,30]
[403921919,1769681435758,-411.178,0.00027498,30]
[403921920,1769681435767,-1000.0,0.000275,90]
[403921921,1769681435777,-1000.0,0.000275,90]
[403921922,1769681435787,-386.0,0.00027568,2]
[403921923,1769681435796,-150.0,0.00027636,2]
[403921924,1769681435806,-150.0,0.00027636,2]
[403921925,1769681435824,-150.0,0.00027636,2]
[403921926,1769681435836,-150.0,0.00027636,2]
[403921927,1769681435846,-172.36,0.00027636,2]
[403921928,1769681435858,-172.36,0.00027636,2]
[403921929,1769681435867,-183.14,0.00027636,2]
[403921930,1769681435878,-172.04,0.00027636,2]
[403921931,1769681435888,-1760.6267613,0.00027697,2]
[403921932,1769681435898,-8342.09633094,0.0002771,2]
[403921933,1769681435908,-1548.62915,0.0002771,2]
[403921934,1769681435918,-1548.62916,0.0002771,2]
[403921935,1769681435928,-1548.62916,0.0002771,2]
[403921936,1769681435938,-386.0,0.00027717,2]
[403921937,1769681435949,-1000.0,0.00027728,2]
[403921938,1769681435960,-200.0,0.00027766,2]
[403921939,1769681435980,-386.0,0.00027835,2]
[403921940,1769681436001,-2000.0,0.0002785,2]
[403921941,1769681436021,-1161.3131,0.0002785,2]
[403921942,1769681436042,-386.0,0.00027853,2]
[403921943,1769681436062,-400.0,0.000279,2]
[403921944,1769681436082,-150.0,0.000279,2]
[403921945,1769681436093,-150.0,0.000279,2]
[403921946,1769681436108,-187.88,0.000279,17]
[403921947,1769681436121,-254.40765,0.000279,2]
[403921948,1769681436134,-4694.66545797,0.000279,2]
[403921949,1769681436144,-378.0,0.00027902,2]
[403921950,1769681436155,-420.0,0.0002791,2]
[403921951,1769681436165,-181.09158246,0.00027949,2]
[403921952,1769681436178,-386.0,0.00027969,2]
[403921953,1769681436191,-503.88228972,0.0002797,2]
[403921954,1769681436201,-700.0,0.0002797,2]
[403921955,1769681436212,-700.0,0.0002797,2]
[403921956,1769681436222,-400.0,0.0002797,2]
[403921957,1769681436231,-19137.0038547,0.0002798,2]
[403921958,1769681436240,-1000.0,0.0002799,2]
[403921959,1769681436250,-1000.0,0.0002799,2]
[403921960,1769681436259,-1000.0,0.0002799,2]
[403921961,1769681436268,-1000.0,0.0002799,2]
[403921962,1769681436278,-1000.0,0.0002799,2]
[403921963,1769681436287,-1000.0,0.0002799,2]
[403921964,1769681436296,-1000.0,0.0002799,2]
[403921965,1769681436305,-1000.0,0.0002799,2]
[403921966,1769681436315,-1000.0,0.0002799,2]
[403921967,1769681436324,-1000.0,0.0002799,2]
[403921968,1769681436333,-1000.0,0.0002799,2]
[403921969,1769681436343,-1000.0,0.0002799,2]
[403921970,1769681436355,-1000.0,0.0002799,2]
[403921971,1769681436365,-1000.0,0.0002799,2]
[403921972,1769681436375,-345.86,0.0002799,2]
[403921973,1769681436386,-1548.62916,0.0002799,2]
[403921974,1769681436396,-1548.62916,0.0002799,2]
[403921975,1769681436407,-1548.62916,0.0002799,2]
[403921976,1769681436417,-164.3260774,0.0002799,2]
[403921977,1769681436427,-63790.012849,0.0002799,2]
[403921978,1769681436438,-71264.03040902,0.00028,2]
[403921979,1769681436448,-50816.54031167,0.00028,2]
[403921980,1769681436458,-160.0,0.00028,2]
[403921981,1769681436467,-500.0,0.00028,30]
[403921982,1769681436477,-1000.0,0.00028,30]
[403921983,1769681436486,-168.0,0.00028,2]
[403921984,1769681436496,-1000.0,0.00028002,2]
[403921985,1769681436505,-197.25,0.00028057,2]
[403921986,1769681436515,-232.62710181,0.0002806,14]
[403921987,1769681436525,-600.0,0.00028264,14]
[403921988,1769681436534,-800.0,0.00028264,14]
[403921989,1769681436544,-1000.0,0.00028276,2]
[403921990,1769681436554,-392.8489312,0.00028391,2]
[403921991,1769681436564,-373.07297731,0.00028397,2]
[403921992,1769681436573,-469.09,0.00028458,2]
[403921993,1769681436583,-469.09,0.00028458,2]
[403921994,1769681436593,-1000.0,0.0002855,2]
[403921995,1769681436603,-213.23689028,0.00028767,2]
[403921996,1769681436613,-6379.0012849,0.00028805,2]
[403921997,1769681436623,-1000.0,0.00028824,2]
[403921998,1769681436634,-199.4,0.000289,2]